bitfinex/quotes_BTCUSD_20250814
["timestamp","ask_amount","ask_price","bid_price","bid_amount"]
[1755165506698,0.00776673,121620.0,121610.0,0.87737646]
[1755165507304,0.00776673,121620.0,121610.0,1.00217646]
[1755165507509,0.00776673,121620.0,121610.0,1.34217646]
[1755165508819,0.00776673,121620.0,121610.0,1.10573182]
[1755165512191,0.00776673,121620.0,121610.0,1.10573182]
[1755165514859,0.00776673,121620.0,121610.0,1.34217646]
[1755165519210,0.00776673,121620.0,121610.0,1.21737646]
[1755165519362,0.00776673,121620.0,121610.0,1.34213646]
[1755165520817,0.00776673,121620.0,121610.0,1.10569182]
[1755165524302,0.00776673,121620.0,121610.0,0.98093182]
[1755165524509,0.00776673,121620.0,121610.0,1.10569182]
[1755165526695,0.00776673,121620.0,121610.0,0.98093182]
[1755165526911,0.00776673,121620.0,121610.0,1.10569182]
[1755165527539,0.00776673,121620.0,121610.0,1.10772182]
[1755165532265,0.00461673,121620.0,121610.0,1.10772182]
[1755165536055,0.00761673,121620.0,121610.0,1.10772182]
[1755165537215,0.00761673,121620.0,121610.0,0.98296182]
[1755165537420,0.00761673,121620.0,121610.0,1.10772182]
[1755165537856,0.00761673,121620.0,121610.0,0.98296182]
[1755165538081,0.00761673,121620.0,121610.0,1.10569182]
[1755165538279,0.49010995,121620.0,121610.0,1.10569182]
[1755165539454,0.00761673,121620.0,121610.0,1.10569182]
[1755165540460,0.00761673,121620.0,121610.0,0.98093182]
[1755165540601,0.00761673,121620.0,121610.0,1.10569182]
[1755165541473,0.00761673,121620.0,121610.0,0.98093182]
[1755165541675,0.00761673,121620.0,121610.0,1.10569182]
[1755165541890,0.00761673,121620.0,121610.0,1.10772182]
[1755165543748,0.00761673,121620.0,121610.0,0.98296182]
[1755165543926,0.00761673,121620.0,121610.0,1.10772182]
[1755165544131,0.00461673,121620.0,121610.0,1.10772182]
[1755165547509,0.00461673,121620.0,121610.0,0.98296182]
[1755165547710,0.00461673,121620.0,121610.0,1.10768182]
[1755165547912,0.00764673,121620.0,121610.0,1.10768182]
[1755165549546,0.00764673,121620.0,121610.0,0.98296182]
[1755165549744,0.49013995,121620.0,121610.0,0.98296182]
[1755165549976,0.49013995,121620.0,121610.0,1.10565182]
[1755165554069,0.49013995,121620.0,121610.0,0.98093182]
[1755165554330,0.49013995,121620.0,121610.0,1.10565182]
[1755165554961,0.49013995,121620.0,121610.0,1.10769182]
[1755165555171,0.00764673,121620.0,121610.0,1.10769182]
[1755165555375,0.49013995,121620.0,121610.0,1.10769182]
[1755165555560,0.49013995,121620.0,121610.0,0.98297182]
[1755165555747,0.49013995,121620.0,121610.0,1.10769182]
[1755165557045,0.48710995,121620.0,121610.0,1.10769182]
[1755165557857,0.00461673,121620.0,121610.0,1.10769182]
[1755165559303,0.00461673,121620.0,121610.0,1.11094182]
[1755165561423,0.00461673,121620.0,121610.0,1.10769182]
[1755165562007,0.00461673,121620.0,121610.0,1.11094182]
[1755165562971,0.48710995,121620.0,121610.0,0.9655228]
[1755165563204,0.48710995,121620.0,121610.0,1.0902428]
[1755165564028,0.48710995,121620.0,121610.0,0.9655228]
[1755165564236,0.48710995,121620.0,121610.0,1.0902428]
[1755165565539,0.00461673,121620.0,121610.0,1.0902428]
[1755165565696,0.48710995,121620.0,121610.0,1.0902428]
[1755165566352,0.00461673,121620.0,121610.0,1.0934928]
[1755165566479,0.48500995,121620.0,121610.0,1.17597723]
[1755165567886,0.00251673,121620.0,121610.0,1.17597723]
[1755165568100,0.48500995,121620.0,121610.0,1.17597723]
[1755165568300,0.48500995,121620.0,121610.0,1.0934928]
[1755165570021,0.00251673,121620.0,121610.0,1.0934928]
[1755165573415,0.00251673,121620.0,121610.0,1.28567]
[1755165575119,0.00251673,121620.0,121610.0,1.30311902]
[1755165580929,0.48500995,121620.0,121610.0,1.30311902]
[1755165581589,0.48500995,121620.0,121610.0,1.11094182]
[1755165583729,0.48500995,121620.0,121610.0,1.30302932]
[1755165586002,0.48704995,121620.0,121610.0,1.29977932]
[1755165586359,0.00455673,121620.0,121610.0,1.29977932]
[1755165586599,0.48704995,121620.0,121610.0,1.29977932]
[1755165588456,0.49009995,121620.0,121610.0,1.29977932]
[1755165588658,0.48704995,121620.0,121610.0,1.29977932]
[1755165590642,0.49009995,121620.0,121610.0,1.29773932]
[1755165591077,0.49009995,121620.0,121610.0,1.29970932]
[1755165591950,0.48704995,121620.0,121610.0,1.29970932]
[1755165596856,0.00455673,121620.0,121610.0,1.29970932]
[1755165597067,0.48704995,121620.0,121610.0,1.29970932]
[1755165597887,0.48704995,121620.0,121610.0,1.17498932]
[1755165598022,0.48704995,121620.0,121610.0,1.29962932]
[1755165599758,0.65454658,121620.0,121610.0,1.1555703]
[1755165599965,0.65454658,121620.0,121610.0,0.8507483]
[1755165600146,0.65454658,121620.0,121610.0,0.5107483]
[1755165600374,0.73674459,121620.0,121610.0,0.4433008]
[1755165600577,0.25425137,121620.0,121610.0,0.7833008]
[1755165600775,0.65454658,121620.0,121610.0,0.7833008]
[1755165601136,0.49009995,121620.0,121610.0,0.7823008]
[1755165601543,0.49009995,121620.0,121610.0,0.6576608]
[1755165601739,0.49009995,121620.0,121610.0,0.7823008]
[1755165601936,0.49009995,121620.0,121610.0,0.6576608]
[1755165602122,0.49009995,121620.0,121610.0,0.7813008]
[1755165603410,0.49009995,121620.0,121610.0,0.6566608]
[1755165603615,0.48704995,121620.0,121610.0,0.7832708]
[1755165603820,0.00251673,121620.0,121610.0,2.0295628]
[1755165604453,0.00251673,121620.0,121610.0,2.11204723]
[1755165605300,0.00251673,121620.0,121610.0,2.0295628]
[1755165605537,0.48500995,121620.0,121610.0,2.0295628]
[1755165605945,0.00251673,121620.0,121610.0,2.0295628]
[1755165606177,0.48500995,121620.0,121610.0,2.0295628]
[1755165606634,0.65440658,121620.0,121610.0,1.2722198]
[1755165606841,0.65440658,121620.0,121610.0,1.3109598]
[1755165607347,0.48995995,121620.0,121610.0,1.3109598]
[1755165607853,0.65440658,121620.0,121610.0,1.3109598]
[1755165608048,0.48995995,121620.0,121610.0,1.3109598]
[1755165608262,0.65440658,121620.0,121610.0,1.3109598]
[1755165611605,0.48995995,121620.0,121610.0,1.3109598]
[1755165614453,0.48995995,121620.0,121610.0,1.1786718]
[1755165615109,0.48995995,121620.0,121610.0,0.8146858]
[1755165615341,0.48995995,121620.0,121610.0,0.6566608]
[1755165615594,0.48995995,121620.0,121610.0,0.7812608]
[1755165618997,0.00746673,121620.0,121610.0,0.7812608]
[1755165619212,0.48995995,121620.0,121610.0,0.6566608]
[1755165619447,0.48995995,121620.0,121610.0,0.7812608]
[1755165620601,0.48744322,121620.0,121610.0,0.77626389]
[1755165621897,0.48744322,121620.0,121610.0,0.65166389]
[1755165622100,0.48744322,121620.0,121610.0,0.77626389]
[1755165622962,0.48744322,121620.0,121610.0,0.65166389]
[1755165623145,0.48744322,121620.0,121610.0,0.77626389]
[1755165623693,0.48744322,121620.0,121610.0,0.77827389]
[1755165625201,0.00495,121620.0,121610.0,0.77827389]
[1755165625409,0.48744322,121620.0,121610.0,0.77827389]
[1755165627335,0.48450322,121620.0,121610.0,0.77827389]
[1755165630171,0.68497988,121620.0,121610.0,0.22894064]
[1755165630578,0.68497988,121620.0,121610.0,0.69354064]
[1755165630792,0.65188985,121620.0,121610.0,0.69354064]
[1755165630986,0.65188985,121620.0,121610.0,0.56894064]
[1755165631187,0.65188985,121620.0,121610.0,0.69354064]
[1755165631407,0.65288985,121620.0,121610.0,0.69354064]
[1755165631611,0.65388985,121620.0,121610.0,0.56894064]
[1755165631793,0.73637428,121620.0,121610.0,0.56894064]
[1755165632009,0.73637428,121620.0,121610.0,0.69350064]
[1755165632239,0.73637428,121620.0,121610.0,0.32884064]
[1755165634192,0.25388106,121620.0,121610.0,0.32884064]
[1755165634437,0.73637428,121620.0,121610.0,0.20428064]
[1755165634640,0.73637428,121620.0,121610.0,0.32888064]
[1755165635355,0.65388985,121620.0,121610.0,0.32888064]
[1755165637114,0.65388985,121620.0,121610.0,0.20428064]
[1755165637243,0.65388985,121620.0,121610.0,0.32884064]
[1755165637445,0.65388985,121620.0,121610.0,0.20428064]
[1755165637652,0.65388985,121620.0,121610.0,0.32884064]
[1755165637962,0.73637428,121620.0,121610.0,0.20428064]
[1755165638181,0.73637428,121620.0,121610.0,0.32884064]
[1755165638398,1.00127428,121620.0,121610.0,0.32884064]
[1755165638905,1.08699753,121620.0,121610.0,0.00712064]
[1755165639498,1.11066453,121620.0,121610.0,0.13168064]
[1755165639898,1.11266453,121620.0,121610.0,0.00712064]
[1755165640145,1.0301801,121620.0,121610.0,0.00712064]
[1755165640510,1.0301801,121620.0,121610.0,0.13168064]
[1755165640945,1.0055131,121620.0,121610.0,0.13168064]
[1755165641151,1.0301811,121620.0,121610.0,0.13168064]
[1755165644079,1.0301811,121620.0,121610.0,0.00712064]
[1755165644248,1.11266553,121620.0,121610.0,0.13168064]
[1755165651545,1.11266553,121620.0,121610.0,0.00712064]
[1755165651748,1.11266553,121620.0,121610.0,0.13168064]
[1755165652170,1.0301811,121620.0,121610.0,0.13168064]
[1755165656466,1.0301811,121620.0,121610.0,0.00712064]
[1755165656665,1.0301811,121620.0,121610.0,0.13168064]
[1755165657617,1.0301811,121620.0,121610.0,0.00712064]
[1755165657816,1.0301811,121620.0,121610.0,0.13168064]
[1755165658405,1.0301811,121620.0,121610.0,0.00712064]
[1755165658591,1.08274445,121620.0,121610.0,0.13168064]
[1755165658807,1.08274445,121620.0,121610.0,0.00712064]
[1755165659069,1.08274445,121620.0,121610.0,0.13168064]
[1755165660719,1.08274445,121620.0,121610.0,0.00712064]
[1755165660934,1.08274445,121620.0,121610.0,0.13168064]
[1755165663864,1.0301811,121620.0,121610.0,0.02289915]
[1755165664948,1.0055131,121620.0,121610.0,0.02289915]
[1755165667943,0.16447368,121600.0,121590.0,0.00615]
[1755165668151,0.6469669,121600.0,121590.0,0.63266]
[1755165668352,0.6469669,121600.0,121590.0,0.13266]
[1755165668561,0.72811075,121600.0,121590.0,0.13266]
[1755165669961,0.24561753,121600.0,121590.0,0.13266]
[1755165670149,0.6469669,121600.0,121590.0,0.13266]
[1755165671371,0.6469669,121600.0,121590.0,0.47266]
[1755165672005,0.6469669,121600.0,121590.0,0.3481]
[1755165672204,0.6469669,121600.0,121590.0,0.47262]
[1755165673173,0.6469669,121600.0,121590.0,0.46647]
[1755165674485,0.16448721,121590.0,121580.0,0.20024]
[1755165674689,0.65216043,121590.0,121580.0,0.32476]
[1755165675524,0.77176941,121590.0,121580.0,0.20024]
[1755165675743,0.77176941,121590.0,121580.0,0.32476]
[1755165675954,0.77276941,121590.0,121580.0,0.20024]
[1755165676167,0.85525384,121590.0,121580.0,0.32476]
[1755165677518,0.85625384,121590.0,121580.0,0.32476]
[1755165677848,0.85625384,121590.0,121580.0,0.20024]
[1755165678079,0.88092884,121590.0,121580.0,0.32476]
[1755165678754,0.88092884,121590.0,121580.0,0.12752]
[1755165681064,0.88092884,121590.0,121580.0,0.12756]
[1755165686360,0.88092884,121590.0,121580.0,0.003]
[1755165686580,0.39843562,121590.0,121580.0,0.12756]
[1755165686760,0.88092884,121590.0,121580.0,0.003]
[1755165686965,0.88092884,121590.0,121580.0,0.12756]
[1755165687110,0.88092884,121590.0,121580.0,0.003]
[1755165687326,0.88092884,121590.0,121580.0,0.12756]
[1755165690788,0.39843562,121590.0,121580.0,0.12756]
[1755165690969,0.88092884,121590.0,121580.0,0.12756]
[1755165701487,0.84404311,121590.0,121580.0,0.12756]
[1755165703137,0.16648721,121590.0,121580.0,0.13289]
[1755165703355,0.16648721,121590.0,121580.0,0.97289]
[1755165703572,0.16648721,121590.0,121580.0,0.47289]
[1755165703804,0.16648721,121590.0,121580.0,0.34833]
[1755165704023,0.16648721,121590.0,121580.0,0.373001]
[1755165704182,0.16648721,121590.0,121580.0,0.497561]
[1755165704183,0.24783262,121590.0,121580.0,0.497561]
[1755165705017,0.24783262,121590.0,121580.0,0.373001]
[1755165705228,0.24783262,121590.0,121580.0,0.497561]
[1755165705426,0.24783262,121590.0,121580.0,0.373001]
[1755165705654,0.24783262,121590.0,121580.0,0.497561]
[1755165706050,0.73032584,121590.0,121580.0,0.497561]
[1755165707431,0.73032584,121590.0,121580.0,0.373001]
[1755165707634,0.73032584,121590.0,121580.0,0.497521]
[1755165707635,0.24783262,121590.0,121580.0,0.497521]
[1755165708995,0.24783262,121590.0,121580.0,0.369831]
[1755165709206,0.73571584,121590.0,121580.0,0.343]
[1755165709415,0.73571584,121590.0,121580.0,0.46752]
[1755165710048,0.73571584,121590.0,121580.0,0.343]
[1755165710180,0.73571584,121590.0,121580.0,0.46752]
[1755165710392,0.73571584,121590.0,121580.0,0.343]
[1755165710619,0.73571584,121590.0,121580.0,0.46752]
[1755165711458,0.73571584,121590.0,121580.0,0.343]
[1755165711671,0.73571584,121590.0,121580.0,0.46752]
[1755165711878,0.73571584,121590.0,121580.0,0.343]
[1755165712083,0.73571584,121590.0,121580.0,0.46752]
[1755165712530,1.00161584,121590.0,121580.0,0.46752]
[1755165712732,0.91488043,121590.0,121580.0,0.46968]
[1755165712950,0.43238721,121590.0,121580.0,0.47285]
[1755165716563,0.43238721,121590.0,121580.0,0.34833]
[1755165716987,0.43238721,121590.0,121580.0,0.47285]
[1755165717846,0.43238721,121590.0,121580.0,0.49752]
[1755165718255,0.14685193,121590.0,121580.0,0.48772252]
[1755165720281,0.14685193,121590.0,121580.0,0.36320252]
[1755165720507,0.14685193,121590.0,121580.0,0.48772252]
[1755165721270,0.14685193,121590.0,121580.0,0.48455252]
[1755165721475,0.14902193,121590.0,121580.0,0.48455252]
[1755165721676,0.64717994,121590.0,121580.0,0.36003252]
[1755165721887,0.64717994,121590.0,121580.0,0.48455252]
[1755165722103,0.16468672,121590.0,121580.0,0.48455252]
[1755165722284,0.63473515,121590.0,121580.0,0.48455252]
[1755165723385,0.15224193,121590.0,121580.0,0.48455252]
[1755165723583,0.63473515,121590.0,121580.0,0.48455252]
[1755165724753,0.16450074,121580.0,121570.0,0.43504]
[1755165724954,0.81759164,121580.0,121570.0,0.55956]
[1755165725153,0.33509842,121580.0,121570.0,0.43504]
[1755165725370,0.16450074,121580.0,121570.0,0.56489]
[1755165725563,0.16667074,121580.0,121570.0,0.56172]
[1755165725914,0.65238396,121580.0,121570.0,0.55956]
[1755165726333,0.65238396,121580.0,121570.0,0.09504]
[1755165726539,0.73510721,121580.0,121570.0,0.09504]
[1755165726758,0.81759164,121580.0,121570.0,0.09504]
[1755165727201,0.81759164,121580.0,121570.0,0.21956]
[1755165728789,0.16989074,121580.0,121570.0,0.21956]
[1755165729011,0.16667074,121580.0,121570.0,0.2217]
[1755165729410,0.65235396,121580.0,121570.0,0.2217]
[1755165729638,0.65235396,121580.0,121570.0,0.21956]
[1755165732587,0.16986074,121580.0,121570.0,0.21956]
[1755165732725,0.65235396,121580.0,121570.0,0.21956]
[1755165734112,0.68014184,121580.0,121570.0,0.21956]
[1755165735060,0.65235396,121580.0,121570.0,0.21956]
[1755165736193,0.91825396,121580.0,121570.0,0.21956]
[1755165742087,0.91825396,121580.0,121570.0,0.2196]
[1755165742289,0.91725396,121580.0,121570.0,0.2196]
[1755165743215,0.43476074,121580.0,121570.0,0.2196]
[1755165743421,0.91725396,121580.0,121570.0,0.2196]
[1755165743626,0.89749682,121580.0,121570.0,0.20972973]
[1755165743826,0.88774143,121580.0,121570.0,0.20972973]
[1755165748349,0.88774143,121580.0,121570.0,0.21186973]
[1755165748552,0.88774143,121580.0,121570.0,0.1216267]
[1755165748553,0.39988821,121580.0,121570.0,0.1216267]
[1755165748809,0.2659,121580.0,121570.0,0.93039973]
[1755165749042,0.2649,121580.0,121570.0,0.55507973]
[1755165749212,0.2649,121580.0,121570.0,0.43039973]
[1755165749413,0.2649,121580.0,121570.0,0.6081597]
[1755165749661,0.42940074,121580.0,121570.0,0.4834797]
[1755165750002,0.42940074,121580.0,121570.0,0.55507973]
[1755165750210,0.42940074,121580.0,121570.0,0.55198973]
[1755165750437,0.42940074,121580.0,121570.0,0.55202973]
[1755165750609,0.42940074,121580.0,121570.0,0.42730973]
[1755165750751,0.42940074,121580.0,121570.0,0.55202973]
[1755165751876,0.42940074,121580.0,121570.0,0.42730973]
[1755165752160,0.42940074,121580.0,121570.0,0.55507973]
[1755165752364,0.42940074,121580.0,121570.0,0.43039973]
[1755165752501,0.42940074,121580.0,121570.0,0.55507973]
[1755165752918,0.42940074,121580.0,121570.0,0.55198973]
[1755165753287,0.42940074,121580.0,121570.0,0.55214973]
[1755165753867,0.16450074,121580.0,121570.0,0.55214973]
[1755165754326,0.16971074,121580.0,121570.0,0.42516973]
[1755165754532,0.16971074,121580.0,121570.0,0.55000973]
[1755165754922,0.20760692,121580.0,121570.0,0.55214973]
[1755165755333,0.16971074,121580.0,121570.0,0.55214973]
[1755165755539,0.65220396,121580.0,121570.0,0.55000973]
[1755165756283,0.65120396,121580.0,121570.0,0.55000973]
[1755165758143,0.65120396,121580.0,121570.0,0.55008973]
[1755165758501,0.16871074,121580.0,121570.0,0.55008973]
[1755165758702,0.65120396,121580.0,121570.0,0.55008973]
[1755165759598,0.73100955,121580.0,121570.0,0.55008973]
[1755165760028,0.65120396,121580.0,121570.0,0.55008973]
[1755165760906,0.16871074,121580.0,121570.0,0.55008973]
[1755165762473,0.16350074,121580.0,121570.0,0.42723973]
[1755165762731,0.16350074,121580.0,121570.0,0.55520973]
[1755165762993,0.16350074,121580.0,121570.0,0.55211973]
[1755165763229,0.16563074,121580.0,121570.0,0.55211973]
[1755165763489,0.16863074,121580.0,121570.0,0.55211973]
[1755165763947,0.15973929,121580.0,121570.0,0.55211973]
[1755165764186,0.15973929,121580.0,121570.0,0.42723973]
[1755165764432,0.15973929,121580.0,121570.0,0.55211973]
[1755165766737,0.15973929,121580.0,121570.0,0.55004973]
[1755165766959,0.64223251,121580.0,121570.0,0.55004973]
[1755165767455,0.15973929,121580.0,121570.0,0.55004973]
[1755165767679,0.64223251,121580.0,121570.0,0.55004973]
[1755165768911,0.15873929,121580.0,121570.0,0.55004973]
[1755165769987,0.64123251,121580.0,121570.0,0.55004973]
[1755165771044,0.72395576,121580.0,121570.0,0.08516973]
[1755165771559,0.72395576,121580.0,121570.0,0.20996973]
[1755165771822,0.98885576,121580.0,121570.0,0.20996973]
[1755165772165,1.07134019,121580.0,121570.0,0.20996973]
[1755165772333,0.58884697,121580.0,121570.0,0.20996973]
[1755165772586,1.07134019,121580.0,121570.0,0.20996973]
[1755165773288,0.98885576,121580.0,121570.0,0.20996973]
[1755165774737,0.98885576,121580.0,121570.0,0.08516973]
[1755165774922,0.98885576,121580.0,121570.0,0.20992973]
[1755165776361,0.50636254,121580.0,121570.0,0.08516973]
[1755165776570,1.02602533,121580.0,121570.0,0.08516973]
[1755165776778,1.02602533,121580.0,121570.0,0.21004973]
[1755165777949,0.53840211,121580.0,121570.0,0.21211973]
[1755165778155,1.02089533,121580.0,121570.0,0.21215973]
[1755165778368,0.54053211,121580.0,121570.0,0.21215973]
[1755165778567,0.54353211,121580.0,121570.0,0.21215973]
[1755165778873,0.54353211,121580.0,121570.0,0.21008973]
[1755165779081,1.02602533,121580.0,121570.0,0.08516973]
[1755165779286,1.02602533,121580.0,121570.0,0.21040973]
[1755165782999,1.02602533,121580.0,121570.0,0.21072973]
[1755165783417,1.02602533,121580.0,121570.0,0.21068973]
[1755165783640,1.02602533,121580.0,121570.0,0.08516973]
[1755165783841,1.02602533,121580.0,121570.0,0.21068973]
[1755165784658,0.54353211,121580.0,121570.0,0.21068973]
[1755165784816,1.02602533,121580.0,121570.0,0.21068973]
[1755165785813,1.02602533,121580.0,121570.0,0.08516973]
[1755165786024,1.02602533,121580.0,121570.0,0.21076973]
[1755165786244,1.02602533,121580.0,121570.0,0.08516973]
[1755165786651,1.02602533,121580.0,121570.0,0.21072973]
[1755165786877,1.10850976,121580.0,121570.0,0.21072973]
[1755165792062,1.10850976,121580.0,121570.0,0.21064973]
[1755165793167,1.10850976,121580.0,121570.0,0.21060973]
[1755165793399,1.02602533,121580.0,121570.0,0.21060973]
[1755165795043,0.54353211,121580.0,121570.0,0.21060973]
[1755165795258,0.76112533,121580.0,121570.0,0.21060973]
[1755165798463,0.76112533,121580.0,121540.0,0.1954875]
[1755165798464,0.16454134,121550.0,121540.0,0.1954875]
[1755165798671,0.16454134,121550.0,121540.0,0.3208875]
[1755165798672,0.74925683,121550.0,121540.0,0.3208875]
[1755165798893,0.7830044,121550.0,121540.0,0.3208875]
[1755165799095,0.73505781,121550.0,121540.0,0.3208875]
[1755165799332,0.81754224,121550.0,121540.0,0.1954875]
[1755165799511,0.81754224,121550.0,121540.0,0.3208875]
[1755165799658,0.81854224,121550.0,121540.0,0.1288]
[1755165800467,0.84903981,121550.0,121540.0,0.1288]
[1755165800784,0.85003981,121550.0,121540.0,0.1288]
[1755165800983,1.33253303,121550.0,121540.0,0.1288]
[1755165801799,0.81629224,121550.0,121540.0,0.0054]
[1755165801976,0.81629224,121550.0,121540.0,0.13076]
[1755165802176,0.33379902,121550.0,121540.0,0.13076]
[1755165802400,0.73175781,121550.0,121540.0,0.0054]
[1755165802633,0.24926459,121550.0,121540.0,0.00865]
[1755165802840,0.16654134,121550.0,121540.0,0.13405]
[1755165803045,0.16654134,121550.0,121540.0,0.00865]
[1755165803428,0.64903456,121550.0,121540.0,0.13405]
[1755165803638,0.64803456,121550.0,121540.0,0.13405]
[1755165804518,0.64703456,121550.0,121540.0,0.13405]
[1755165804723,0.64803456,121550.0,121540.0,0.13405]
[1755165805338,0.64703456,121550.0,121540.0,0.13405]
[1755165805543,0.16454134,121550.0,121540.0,0.13405]
[1755165805750,0.64803456,121550.0,121540.0,0.13405]
[1755165806874,0.16554134,121550.0,121540.0,0.00865]
[1755165807574,0.64803456,121550.0,121540.0,0.13401]
[1755165808001,0.7292908,121550.0,121540.0,0.13401]
[1755165808203,0.64803456,121550.0,121540.0,0.13401]
[1755165810139,0.64803456,121550.0,121540.0,0.13076]
[1755165810345,0.65333456,121550.0,121540.0,0.12872]
[1755165811195,0.65333456,121550.0,121540.0,0.0034]
[1755165811419,0.65333456,121550.0,121540.0,0.13072]
[1755165811840,0.001,121550.0,121540.0,0.00865]
[1755165812046,0.001,121550.0,121540.0,1.18718593]
[1755165812254,0.001,121550.0,121540.0,1.185129]
[1755165812903,0.001,121550.0,121540.0,1.26761343]
[1755165813130,0.001,121550.0,121540.0,1.180129]
[1755165813768,0.001,121550.0,121540.0,1.182129]
[1755165814234,0.001,121550.0,121540.0,1.26485225]
[1755165814458,0.24258769,121570.0,121540.0,1.13953225]
[1755165814722,0.24258769,121570.0,121550.0,2.050142]
[1755165814944,0.24258769,121570.0,121560.0,0.12736]
[1755165815188,0.24258769,121570.0,121560.0,0.497]
[1755165815388,0.24788769,121570.0,121560.0,0.62236]
[1755165815596,0.24788769,121570.0,121560.0,0.12536]
[1755165815853,0.73038091,121570.0,121560.0,0.12536]
[1755165816075,0.81286534,121570.0,121560.0,0.12808]
[1755165816698,0.73038091,121570.0,121560.0,0.12808]
[1755165817517,0.24788769,121570.0,121560.0,0.12808]
[1755165817724,0.73038091,121570.0,121560.0,0.12808]
[1755165818619,0.73138091,121570.0,121560.0,0.12808]
[1755165818845,0.24888769,121570.0,121540.0,0.42292325]
[1755165819120,0.73138091,121570.0,121560.0,0.00031]
[1755165819344,0.73139091,121570.0,121550.0,0.12812]
[1755165819557,0.73139091,121570.0,121540.0,0.42292325]
[1755165819782,0.73039091,121570.0,121550.0,0.12892]
[1755165820235,0.00295,121560.0,121550.0,0.12892]
[1755165820458,0.00295,121560.0,121550.0,0.12923]
[1755165822512,0.00295,121560.0,121550.0,0.12423]
[1755165823015,0.65203102,121560.0,121550.0,0.001]
[1755165823225,0.65203102,121560.0,121550.0,0.12976]
[1755165823721,0.1695378,121560.0,121550.0,0.12976]
[1755165823947,0.65203102,121560.0,121550.0,0.12976]
[1755165826423,0.1695378,121560.0,121550.0,0.12976]
[1755165826632,0.00501,121560.0,121550.0,0.12976]
[1755165826832,0.72508091,121570.0,121550.0,0.12999]
[1755165826833,0.17868998,121570.0,121550.0,0.12999]
[1755165828490,0.003,121570.0,121560.0,0.5]
[1755165828702,0.003,121570.0,121560.0,0.96891]
[1755165828903,0.003,121570.0,121560.0,0.46891]
[1755165830112,0.004,121570.0,121560.0,0.46891]
[1755165830323,0.16454368,121550.0,121530.0,0.03592527]
[1755165830546,0.68076804,121550.0,121540.0,0.46856]
[1755165830749,0.68076804,121550.0,121540.0,0.4686]
[1755165830750,0.68282804,121550.0,121540.0,0.4686]
[1755165830959,0.16455487,121540.0,121530.0,0.01124927]
[1755165831185,0.65205809,121540.0,121530.0,0.13980927]
[1755165831574,0.65205809,121540.0,121530.0,0.01124927]
[1755165831779,0.16956487,121540.0,121530.0,0.13976927]
[1755165833163,0.16956487,121540.0,121530.0,0.14176927]
[1755165833376,0.16956487,121540.0,121530.0,0.13976927]
[1755165839680,0.16956487,121540.0,121530.0,0.01124927]
[1755165839886,0.16956487,121540.0,121530.0,0.13952927]
[1755165840178,0.65205809,121540.0,121530.0,0.13944927]
[1755165841037,0.73454252,121540.0,121530.0,0.01124927]
[1755165841250,0.73454252,121540.0,121530.0,0.13944927]
[1755165841460,0.65205809,121540.0,121530.0,0.13944927]
[1755165841679,0.64999809,121540.0,121530.0,0.13975927]
[1755165841889,0.16455487,121540.0,121530.0,0.13975927]
[1755165842093,0.16956487,121540.0,121530.0,0.01124927]
[1755165842299,0.65205809,121540.0,121530.0,0.13940927]
[1755165842499,0.72967792,121540.0,121530.0,0.01124927]
[1755165842703,0.72967792,121540.0,121530.0,0.13940927]
[1755165843903,0.23641258,121540.0,121530.0,0.13940927]
[1755165844112,0.16956487,121540.0,121530.0,0.35155927]
[1755165844321,0.16750487,121540.0,121530.0,0.47971927]
[1755165844521,0.16956487,121540.0,121530.0,0.47971927]
[1755165845160,0.16749368,121550.0,121530.0,0.35155927]
[1755165845373,0.16455487,121540.0,121530.0,0.35155927]
[1755165845575,0.16455487,121540.0,121530.0,0.47967927]
[1755165846349,0.6499869,121550.0,121530.0,0.47967927]
[1755165846577,0.16455487,121540.0,121530.0,0.47967927]
[1755165846783,0.16754487,121540.0,121530.0,0.47967927]
[1755165847556,0.16754487,121540.0,121530.0,0.67703927]
[1755165848849,0.16754487,121540.0,121530.0,0.54891927]
[1755165849029,0.00299,121540.0,121530.0,0.67687927]
[1755165849240,0.16754487,121540.0,121530.0,0.67687927]
[1755165849457,0.16754487,121540.0,121530.0,0.54891927]
[1755165849659,0.16754487,121540.0,121530.0,0.67687927]
[1755165849871,0.16754487,121540.0,121530.0,0.54891927]
[1755165850044,0.16754487,121540.0,121530.0,0.67687927]
[1755165850449,0.16754487,121540.0,121530.0,0.67683927]
[1755165850853,0.00299,121540.0,121530.0,0.67683927]
[1755165852526,0.23438139,121550.0,121530.0,0.67683927]
[1755165855164,0.00299,121540.0,121530.0,0.67683927]
[1755165856901,0.00508,121540.0,121530.0,0.54891927]
[1755165857108,0.23139139,121550.0,121530.0,0.67663927]
[1755165857311,0.23438139,121550.0,121530.0,0.67663927]
[1755165857508,0.23139139,121550.0,121530.0,0.67663927]
[1755165857738,0.00299,121540.0,121530.0,0.67663927]
[1755165857941,0.16963487,121540.0,121530.0,0.67663927]
[1755165858141,0.00508,121540.0,121530.0,0.67663927]
[1755165858347,0.16963487,121540.0,121530.0,0.67663927]
[1755165858807,0.00508,121540.0,121530.0,0.67663927]
[1755165859009,0.16963487,121540.0,121530.0,0.67663927]
[1755165859217,0.16963487,121540.0,121530.0,0.67624927]
[1755165863531,0.65212809,121540.0,121530.0,0.67612927]
[1755165863939,0.16963487,121540.0,121530.0,0.67612927]
[1755165864682,0.16963487,121540.0,121530.0,0.67608927]
[1755165866751,0.16963487,121540.0,121530.0,0.47872927]
[1755165867358,0.65212809,121540.0,121530.0,0.47872927]
[1755165867505,0.65212809,121540.0,121530.0,0.35124927]
[1755165867711,0.6939407,121540.0,121530.0,0.47868927]
[1755165867917,0.6939407,121540.0,121530.0,0.35124927]
[1755165868353,0.6939407,121540.0,121530.0,0.47876927]
[1755165868939,0.6939407,121540.0,121530.0,0.35124927]
[1755165869353,0.6939407,121540.0,121530.0,0.47872927]
[1755165870547,0.6939407,121540.0,121530.0,0.35124927]
[1755165870758,0.65212809,121540.0,121530.0,0.13864927]
[1755165872185,0.65212809,121540.0,121530.0,0.1304]
[1755165873537,0.65212809,121540.0,121530.0,0.13336983]
[1755165878225,0.65212809,121540.0,121530.0,0.13341318]
[1755165878859,0.73461252,121540.0,121530.0,0.13341318]
[1755165880061,0.73461252,121540.0,121530.0,0.00601318]
[1755165880273,0.73461252,121540.0,121530.0,0.13325318]
[1755165880810,0.65212809,121540.0,121530.0,0.13325318]
[1755165881082,0.65212809,121540.0,121530.0,0.00601318]
[1755165881315,0.65212809,121540.0,121530.0,0.13321318]
[1755165881945,0.16455487,121540.0,121530.0,0.13392318]
[1755165882166,0.16455487,121540.0,121530.0,0.13244318]
[1755165882569,0.16455487,121540.0,121530.0,0.13239983]
[1755165883118,0.16455487,121540.0,121530.0,0.00479983]
[1755165883326,0.16455487,121540.0,121530.0,0.13231983]
[1755165883703,0.16455487,121540.0,121530.0,0.13237139]
[1755165884079,0.16455487,121540.0,121530.0,0.00485139]